fUST/lending_fUST_20250417
["ID","MTS","AMOUNT","RATE_DAILY","PERIOD"]
[358261532,1744877455764,-500.0,0.00022191,2]
[358261533,1744877455774,-500.0,0.00022191,2]
[358261534,1744877455784,-2020.32,0.00022191,2]
[358261535,1744877455794,-500.0,0.00022191,2]
[358261536,1744877455804,-500.0,0.00022191,2]
[358261537,1744877455813,-502.01995191,0.00022191,2]
[358261538,1744877455823,-335.96350849,0.00022191,2]
[358261539,1744877455831,-500.0,0.00022191,2]
[358261540,1744877455840,-500.0,0.00022191,2]
[358261541,1744877455849,-506.10582599,0.00022191,2]
[358261542,1744877455858,-500.0,0.00022191,2]
[358261543,1744877455866,-500.0,0.00022191,2]
[358261544,1744877455875,-500.0,0.00022191,2]
[358261545,1744877455884,-792.96,0.00022191,2]
[358261546,1744877455894,-925.54,0.00022191,2]
[358261547,1744877455904,-504.18545654,0.00022191,2]
[358261548,1744877455914,-500.0,0.00022191,2]
[358261549,1744877455925,-500.0,0.00022191,2]
[358261550,1744877455934,-500.0,0.00022191,2]
[358261551,1744877455944,-823.4,0.00022191,2]
[358261552,1744877455954,-500.0,0.00022191,2]
[358261553,1744877455964,-502.24828115,0.00022191,2]
[358261554,1744877455974,-1041.93,0.00022191,2]
[358261555,1744877455985,-896.96,0.00022191,2]
[358261556,1744877455995,-1093.48,0.00022191,2]
[358261557,1744877456005,-507.94063237,0.00022191,2]
[358261558,1744877456015,-651.71,0.00022191,2]
[358261559,1744877456024,-500.0,0.00022191,2]
[358261560,1744877456035,-500.0,0.00022191,2]
[358261561,1744877456045,-961.61,0.00022191,2]
[358261562,1744877456054,-623.96,0.00022191,2]
[358261563,1744877456064,-8617.81,0.00022191,2]
[358261564,1744877456074,-341.85178291,0.00022191,2]
[358261565,1744877456084,-500.0,0.00022191,2]
[358261566,1744877456094,-750.25,0.00022191,2]
[358261567,1744877456105,-500.0,0.00022191,2]
[358261568,1744877456114,-1884.71,0.00022191,2]
[358261569,1744877456125,-500.0,0.00022191,2]
[358261570,1744877456135,-863.77,0.00022191,2]
[358261571,1744877456145,-500.0,0.00022191,2]
[358261572,1744877456158,-500.0,0.00022191,2]
[358261573,1744877456167,-500.0,0.00022191,2]
[358261574,1744877456177,-500.0,0.00022191,2]
[358261575,1744877456187,-500.0,0.00022191,2]
[358261576,1744877456197,-504.24,0.00022191,2]
[358261577,1744877456207,-818.01,0.00022191,2]
[358261578,1744877456217,-570.81284378,0.00022191,2]
[358261579,1744877456226,-637.87,0.00022191,2]
[358261580,1744877456235,-407.7355,0.00022191,2]
[358261581,1744877456245,-228.2886993,0.00022191,2]
[358261582,1744877456256,-500.0,0.00022191,2]
[358261583,1744877456266,-500.0,0.00022191,2]
[358261584,1744877456275,-500.0,0.00022191,2]
[358261585,1744877456286,-514.91,0.00022191,2]
[358261586,1744877456296,-496.95605703,0.00022191,2]
[358261587,1744877456306,-500.0,0.00022191,2]
[358261588,1744877456315,-500.0,0.00022191,2]
[358261589,1744877456325,-1311.62,0.00022191,2]
[358261590,1744877456336,-500.0,0.00022191,2]
[358261591,1744877456345,-764.01,0.00022191,2]
[358261592,1744877456355,-500.0,0.00022191,2]
[358261593,1744877456364,-730.16,0.00022191,2]
[358261594,1744877456375,-7650.49,0.00022191,2]
[358261595,1744877456384,-500.0,0.00022191,2]
[358261596,1744877456395,-500.0,0.00022191,2]
[358261597,1744877456405,-500.0,0.00022191,2]
[358261598,1744877456416,-711.07,0.00022191,2]
[358261599,1744877456425,-500.0,0.00022191,2]
[358261600,1744877456435,-4639.05,0.00022191,2]
[358261601,1744877456445,-500.0,0.00022191,2]
[358261602,1744877456456,-437.63442313,0.00022191,2]
[358261603,1744877456466,-500.0,0.00022191,2]
[358261604,1744877456476,-788.57,0.00022191,2]
[358261605,1744877456486,-1657.12,0.00022191,2]
[358261606,1744877456496,-500.0,0.00022191,2]
[358261607,1744877456506,-500.0,0.00022191,2]
[358261608,1744877456516,-500.0,0.00022191,2]
[358261609,1744877456529,-520.11,0.00022191,2]
[358261610,1744877456539,-500.0,0.00022191,2]
[358261611,1744877456550,-326.246903,0.00022191,2]
[358261612,1744877456559,-500.0,0.00022191,2]
[358261613,1744877456570,-500.0,0.00022191,2]
[358261614,1744877456579,-736.45,0.00022191,2]
[358261615,1744877456589,-500.0,0.00022191,2]
[358261616,1744877456600,-1222.88,0.00022191,2]
[358261617,1744877456611,-500.0,0.00022191,2]
[358261618,1744877456621,-1171.43,0.00022191,2]
[358261619,1744877456632,-1016.25,0.00022191,2]
[358261620,1744877456643,-859.36,0.00022191,2]
[358261621,1744877456654,-500.0,0.00022191,2]
[358261622,1744877456664,-500.0,0.00022191,2]
[358261623,1744877456674,-864.34,0.00022191,2]
[358261624,1744877456684,-1716.05,0.00022191,2]
[358261625,1744877456694,-540.93,0.00022191,2]
[358261626,1744877456704,-500.0,0.00022191,2]
[358261627,1744877456715,-500.0,0.00022191,2]
[358261628,1744877456725,-886.27,0.00022191,2]
[358261629,1744877456735,-1196.11,0.00022191,2]
[358261630,1744877456747,-710.68,0.00022191,2]
[358261631,1744877456756,-500.0,0.00022191,2]
[358261632,1744877456767,-500.0,0.00022191,2]
[358261633,1744877456776,-751.8,0.00022191,2]
[358261634,1744877456786,-1321.82,0.00022191,2]
[358261635,1744877456796,-500.0,0.00022191,2]
[358261636,1744877456806,-908.14,0.00022191,2]
[358261637,1744877456815,-992.98,0.00022191,2]
[358261638,1744877456825,-814.08,0.00022191,2]
[358261639,1744877456835,-1234.25,0.00022191,2]
[358261640,1744877456844,-962.85,0.00022191,2]
[358261641,1744877456854,-500.0,0.00022191,2]
[358261642,1744877456864,-500.0,0.00022191,2]
[358261643,1744877456874,-1255.27,0.00022191,2]
[358261644,1744877456884,-500.0,0.00022191,2]
[358261645,1744877456894,-774.3,0.00022191,2]
[358261646,1744877456904,-500.0,0.00022191,2]
[358261647,1744877456915,-1252.22,0.00022191,2]
[358261648,1744877456925,-500.0,0.00022191,2]
[358261649,1744877456935,-7614.52,0.00022191,2]
[358261650,1744877456945,-500.0,0.00022191,2]
[358261651,1744877456955,-500.0,0.00022191,2]
[358261652,1744877456966,-969.55,0.00022191,2]
[358261653,1744877456976,-586.82,0.00022191,2]
[358261654,1744877456987,-300.0,0.00022191,2]
[358261655,1744877456998,-710.99,0.00022191,2]
[358261656,1744877457008,-500.0,0.00022191,2]
[358261657,1744877457018,-756.31,0.00022191,2]
[358261658,1744877457029,-500.0,0.00022191,2]
[358261659,1744877457039,-500.0,0.00022191,2]
[358261660,1744877457050,-1435.55,0.00022191,2]
[358261661,1744877457060,-1435.45,0.00022191,2]
[358261662,1744877457070,-570.52,0.00022191,2]
[358261663,1744877457079,-496.15175568,0.00022191,2]
[358261664,1744877457090,-500.0,0.00022191,2]
[358261665,1744877457099,-1234.21,0.00022191,2]
[358261666,1744877457109,-578.56,0.00022191,2]
[358261667,1744877457122,-500.0,0.00022191,2]
[358261668,1744877457133,-560.05513493,0.00022191,2]
[358261669,1744877457144,-578.64,0.00022191,2]
[358261670,1744877457155,-500.0,0.00022191,2]
[358261671,1744877457165,-500.0,0.00022191,2]
[358261672,1744877457175,-616.26,0.00022191,2]
[358261673,1744877457185,-500.0,0.00022191,2]
[358261674,1744877457195,-500.0,0.00022191,2]
[358261675,1744877457207,-500.0,0.00022191,2]
[358261676,1744877457217,-1230.32,0.00022191,2]
[358261677,1744877457228,-2120.81,0.00022191,2]
[358261678,1744877457238,-1974.6,0.00022191,2]
[358261679,1744877457249,-500.0,0.00022191,2]
[358261680,1744877457259,-500.0,0.00022191,2]
[358261681,1744877457269,-500.0,0.00022191,2]
[358261682,1744877457280,-500.0,0.00022191,2]
[358261683,1744877457290,-500.0,0.00022191,2]
[358261684,1744877457300,-231.30392,0.00022191,2]
[358261685,1744877457310,-569.09,0.00022191,2]
[358261686,1744877457320,-1002.48,0.00022191,2]
[358261687,1744877457331,-5642.02,0.00022191,2]
[358261688,1744877457341,-500.0,0.00022191,2]
[358261689,1744877457351,-500.0,0.00022191,2]
[358261690,1744877457361,-978.25,0.00022191,2]
[358261691,1744877457371,-512.12,0.00022191,2]
[358261692,1744877457381,-500.0,0.00022191,2]
[358261693,1744877457391,-500.0,0.00022191,2]
[358261694,1744877457401,-3762.5,0.00022191,2]
[358261695,1744877457411,-479.79868866,0.00022191,2]
[358261696,1744877457423,-500.0,0.00022191,2]
[358261697,1744877457433,-659.89,0.00022191,2]
[358261698,1744877457443,-634.67,0.00022191,2]
[358261699,1744877457453,-1947.47,0.00022191,2]
[358261700,1744877457463,-1201.18,0.00022191,2]
[358261701,1744877457473,-500.0,0.00022191,2]
[358261702,1744877457483,-543.07,0.00022191,2]
[358261703,1744877457495,-500.0,0.00022191,2]
[358261704,1744877457505,-1736.07,0.00022191,2]
[358261705,1744877457516,-500.0,0.00022191,2]
[358261706,1744877457528,-500.0,0.00022191,2]
[358261707,1744877457540,-500.0,0.00022191,2]
[358261708,1744877457550,-714.13,0.00022191,2]
[358261709,1744877457560,-851.28,0.00022191,2]
[358261710,1744877457571,-500.0,0.00022191,2]
[358261711,1744877457581,-500.0,0.00022191,2]
[358261712,1744877457591,-500.0,0.00022191,2]
[358261713,1744877457601,-756.52,0.00022191,2]
[358261714,1744877457613,-2322.91,0.00022191,2]
[358261715,1744877457624,-500.0,0.00022191,2]
[358261716,1744877457634,-500.0,0.00022191,2]
[358261717,1744877457644,-271.35104324,0.00022191,2]
[358261718,1744877457655,-500.0,0.00022191,2]
[358261719,1744877457666,-500.0,0.00022191,2]
[358261720,1744877457676,-500.0,0.00022191,2]
[358261721,1744877457687,-500.0,0.00022191,2]
[358261722,1744877457697,-2073.19,0.00022191,2]
[358261723,1744877457707,-843.25,0.00022191,2]
[358261724,1744877457718,-618.16,0.00022191,2]
[358261725,1744877457729,-2002.15,0.00022191,2]
[358261726,1744877457739,-505.84,0.00022191,2]
[358261727,1744877457749,-500.0,0.00022191,2]
[358261728,1744877457759,-537.6700294,0.00022191,2]
[358261729,1744877457770,-1213.13,0.00022191,2]
[358261730,1744877457780,-500.0,0.00022191,2]
[358261731,1744877457790,-275.82943668,0.00022191,2]
[358261732,1744877457800,-500.0,0.00022191,2]
[358261733,1744877457810,-642.73,0.00022191,2]
[358261734,1744877457820,-500.0,0.00022191,2]
[358261735,1744877457830,-500.0,0.00022191,2]
[358261736,1744877457840,-575.19,0.00022191,2]
[358261737,1744877457850,-1627.33,0.00022191,2]
[358261738,1744877457860,-500.0,0.00022191,2]
[358261739,1744877457870,-229.51685688,0.00022191,2]
[358261740,1744877457880,-500.0,0.00022191,2]
[358261741,1744877457891,-539.31,0.00022191,2]
[358261742,1744877457901,-500.0,0.00022191,2]
[358261743,1744877457911,-500.0,0.00022191,2]
[358261744,1744877457920,-631.27,0.00022191,2]
[358261745,1744877457930,-500.0,0.00022191,2]
[358261746,1744877457940,-1865.0,0.00022191,2]
[358261747,1744877457950,-7320.6,0.00022191,2]
[358261748,1744877457960,-500.0,0.00022191,2]
[358261749,1744877457970,-692.09,0.00022191,2]
[358261750,1744877457980,-500.0,0.00022191,2]
[358261751,1744877457990,-500.0,0.00022191,2]
[358261752,1744877458000,-500.0,0.00022191,2]
[358261753,1744877458010,-1030.23,0.00022191,2]
[358261754,1744877458020,-500.0,0.00022191,2]
[358261755,1744877458030,-500.0,0.00022191,2]
[358261756,1744877458041,-652.65,0.00022191,2]
[358261757,1744877458050,-500.0,0.00022191,2]
[358261758,1744877458061,-500.0,0.00022191,2]
[358261759,1744877458071,-839.98,0.00022191,2]
[358261760,1744877458082,-588.14,0.00022191,2]
[358261761,1744877458092,-500.0,0.00022191,2]
[358261762,1744877458102,-500.0,0.00022191,2]
[358261763,1744877458112,-500.0,0.00022191,2]
[358261764,1744877458123,-500.0,0.00022191,2]
[358261765,1744877458136,-500.0,0.00022191,2]
[358261766,1744877458147,-500.0,0.00022191,2]
[358261767,1744877458158,-1410.49,0.00022191,2]
[358261768,1744877458168,-500.0,0.00022191,2]
[358261769,1744877458179,-500.0,0.00022191,2]
[358261770,1744877458190,-500.0,0.00022191,2]
[358261771,1744877458200,-184.23798002,0.00022191,2]
[358261772,1744877458211,-802.63,0.00022191,2]
[358261773,1744877458221,-1454.02,0.00022191,2]
[358261774,1744877458231,-500.0,0.00022191,2]
[358261775,1744877458242,-500.0,0.00022191,2]
[358261776,1744877458253,-550.89,0.00022191,2]
[358261777,1744877458263,-963.18,0.00022191,2]
[358261778,1744877458275,-500.0,0.00022191,2]
[358261779,1744877458285,-1171.63,0.00022191,2]
[358261780,1744877458295,-618.95,0.00022191,2]
[358261781,1744877458305,-641.04,0.00022191,2]
[358261782,1744877458315,-730.56,0.00022191,2]
[358261783,1744877458326,-500.0,0.00022191,2]
[358261784,1744877458336,-10221.68,0.00022191,2]
[358261785,1744877458347,-1995.09,0.00022191,2]
[358261786,1744877458358,-500.0,0.00022191,2]
[358261787,1744877458368,-621.88,0.00022191,2]
[358261788,1744877458378,-628.26,0.00022191,2]
[358261789,1744877458388,-500.0,0.00022191,2]
[358261790,1744877458398,-16365.26,0.00022191,2]
[358261791,1744877458408,-500.0,0.00022191,2]
[358261792,1744877458418,-2323.33,0.00022191,2]
[358261793,1744877458428,-500.0,0.00022191,2]
[358261794,1744877458438,-1499.31,0.00022191,2]
[358261795,1744877458449,-500.0,0.00022191,2]
[358261796,1744877458460,-252.23983927,0.00022191,2]
[358261797,1744877458471,-500.0,0.00022191,2]
[358261798,1744877458483,-5097.07,0.00022191,2]
[358261799,1744877458496,-500.0,0.00022191,2]
[358261800,1744877458507,-500.0,0.00022191,2]
[358261801,1744877458519,-500.0,0.00022191,2]
[358261802,1744877458533,-500.0,0.00022191,2]
[358261803,1744877458545,-500.0,0.00022191,2]
[358261804,1744877458557,-500.0,0.00022191,2]
[358261805,1744877458570,-1502.97,0.00022191,2]
[358261806,1744877458582,-505.67406216,0.00022191,2]
[358261807,1744877458592,-947.72,0.00022191,2]
[358261808,1744877458602,-551.7,0.00022191,2]
[358261809,1744877458614,-1063.86,0.00022191,2]
[358261810,1744877458625,-556.18,0.00022191,2]
[358261811,1744877458636,-500.0,0.00022191,2]
[358261812,1744877458646,-31509.4,0.00022191,2]
[358261813,1744877458656,-500.0,0.00022191,2]
[358261814,1744877458666,-500.0,0.00022191,2]
[358261815,1744877458676,-1535.03,0.00022191,2]
[358261816,1744877458686,-500.0,0.00022191,2]
[358261817,1744877458697,-500.0,0.00022191,2]
[358261818,1744877458707,-500.0,0.00022191,2]
[358261819,1744877458716,-542.90832931,0.00022191,2]
[358261820,1744877458726,-235.5649354,0.00022191,2]
[358261821,1744877458736,-500.0,0.00022191,2]
[358261822,1744877458747,-500.0,0.00022191,2]
[358261823,1744877458757,-508.75,0.00022191,2]
[358261824,1744877458766,-500.0,0.00022191,2]
[358261825,1744877458776,-500.0,0.00022191,2]
[358261826,1744877458787,-612.01,0.00022191,2]
[358261827,1744877458797,-586.51,0.00022191,2]
[358261828,1744877458808,-500.0,0.00022191,2]
[358261829,1744877458819,-576.76,0.00022191,2]
[358261830,1744877458829,-500.0,0.00022191,2]
[358261831,1744877458840,-572.48,0.00022191,2]
[358261832,1744877458850,-500.0,0.00022191,2]
[358261833,1744877458861,-500.0,0.00022246,2]
[358261834,1744877458872,-232.85435537,0.00022246,2]
[358261835,1744877458884,-500.0,0.00022246,2]
[358261836,1744877458894,-1916.54704631,0.00022296,2]
[358261837,1744877458905,-500.0,0.00022383,2]
[358261838,1744877458915,-500.0,0.00022383,2]
[358261839,1744877458926,-156.84,0.00022465,2]
[358261840,1744877458935,-1684.01,0.00022465,2]
[358261841,1744877458945,-971.71,0.00022465,2]
[358261842,1744877458955,-931.22,0.00022465,2]
[358261843,1744877458965,-500.0,0.00022465,2]
[358261844,1744877458975,-500.0,0.00022465,2]
[358261845,1744877458986,-1204.86,0.00022465,2]
[358261846,1744877458997,-500.0,0.00022465,2]
[358261847,1744877459008,-1418.97,0.00022465,2]
[358261848,1744877459019,-500.0,0.00022465,2]
[358261849,1744877459029,-1359.76,0.00022465,2]
[358261850,1744877459040,-975.27,0.00022465,2]
[358261851,1744877459050,-1200.5,0.00022465,2]
[358261852,1744877459060,-1260.06,0.00022465,2]
[358261853,1744877459070,-500.0,0.00022465,2]
[358261854,1744877459080,-557.96,0.00022465,2]
[358261855,1744877459091,-500.0,0.00022465,2]
[358261856,1744877459101,-500.0,0.00022465,2]
[358261857,1744877459112,-673.56,0.00022465,2]
[358261858,1744877459298,-500.0,0.00022465,2]
[358261859,1744877459308,-998.05,0.00022465,2]
[358261860,1744877459318,-500.0,0.00022465,2]
[358261861,1744877459327,-500.0,0.00022465,2]
[358261862,1744877459337,-198.73491773,0.00022465,2]
[358261863,1744877459345,-1786.99,0.00022465,2]
[358261864,1744877459355,-500.0,0.00022465,2]
[358261865,1744877459364,-500.0,0.00022465,2]
[358261866,1744877459374,-500.0,0.00022465,2]
[358261867,1744877459384,-657.64,0.00022465,2]
[358261868,1744877459394,-500.0,0.00022465,2]
[358261869,1744877459403,-500.0,0.00022465,2]
[358261870,1744877459413,-500.0,0.00022465,2]
[358261871,1744877459423,-500.0,0.00022465,2]
[358261872,1744877459433,-1253.12,0.00022465,2]
[358261873,1744877459443,-762.29,0.00022465,2]
[358261874,1744877459453,-500.0,0.00022465,2]
[358261875,1744877459463,-1078.48,0.00022465,2]
[358261876,1744877459474,-500.0,0.00022465,2]
[358261877,1744877459484,-295.14338601,0.00022465,2]
[358261878,1744877459498,-500.0,0.00022465,2]
[358261879,1744877459508,-1482.77,0.00022465,2]
[358261880,1744877459518,-500.0,0.00022465,2]
[358261881,1744877459531,-448.91764762,0.00022465,2]
[358261882,1744877459541,-500.0,0.00022465,2]
[358261883,1744877459551,-1507.35,0.00022465,2]
[358261884,1744877459561,-3499.49,0.00022465,2]
[358261885,1744877459572,-547.57,0.00022465,2]
[358261886,1744877459582,-511.32,0.00022465,2]
[358261887,1744877459592,-500.0,0.00022465,2]
[358261888,1744877459601,-987.08,0.00022465,2]
[358261889,1744877459612,-945.96,0.00022465,2]
[358261890,1744877459623,-500.0,0.00022465,2]
[358261891,1744877459633,-156.83253992,0.00022465,2]
[358261892,1744877459643,-500.0,0.00022465,2]
[358261893,1744877459653,-500.0,0.00022465,2]
[358261894,1744877459663,-500.0,0.00022465,2]
[358261895,1744877459673,-500.0,0.00022465,2]
[358261896,1744877459683,-500.0,0.00022465,2]
[358261897,1744877459693,-918.18,0.00022465,2]
[358261898,1744877459703,-500.0,0.00022465,2]
[358261899,1744877459713,-3386.27,0.00022465,2]
[358261900,1744877459724,-536.55,0.00022465,2]
[358261901,1744877459734,-500.0,0.00022465,2]
[358261902,1744877459745,-500.0,0.00022465,2]
[358261903,1744877459755,-871.74,0.00022465,2]
[358261904,1744877459765,-500.0,0.00022465,2]
[358261905,1744877459775,-500.0,0.00022465,2]
[358261906,1744877459786,-500.0,0.00022465,2]
[358261907,1744877459796,-823.59,0.00022465,2]
[358261908,1744877459805,-500.0,0.00022465,2]
[358261909,1744877459815,-500.0,0.00022465,2]
[358261910,1744877459824,-500.0,0.00022465,2]
[358261911,1744877459834,-530.74,0.00022465,2]
[358261912,1744877459844,-586.34221275,0.00022465,2]
[358261913,1744877459855,-754.29,0.00022465,2]
[358261914,1744877459864,-500.0,0.00022465,2]
[358261915,1744877459874,-630.3,0.00022465,2]
[358261916,1744877459884,-500.0,0.00022465,2]
[358261917,1744877459894,-695.63,0.00022465,2]
[358261918,1744877459904,-500.0,0.00022465,2]
[358261919,1744877459913,-497.42104516,0.00022465,2]
[358261920,1744877459923,-537.83,0.00022465,2]
[358261921,1744877459932,-509.73015044,0.00022465,2]
[358261922,1744877459942,-502.01046948,0.00022465,2]
[358261923,1744877459951,-778.01,0.00022465,2]
[358261924,1744877459961,-500.0,0.00022465,2]
[358261925,1744877459971,-500.0,0.00022465,2]
[358261926,1744877459981,-509.6313662,0.00022465,2]
[358261927,1744877459990,-505.33631631,0.00022465,2]
[358261928,1744877460001,-500.0,0.00022465,2]
[358261929,1744877460012,-500.0,0.00022465,2]
[358261930,1744877460023,-500.0,0.00022465,2]
[358261931,1744877460033,-500.0,0.00022465,2]
[358261932,1744877460043,-500.0,0.00022465,2]
[358261933,1744877460054,-500.0,0.00022465,2]
[358261934,1744877460065,-500.0,0.00022465,2]
[358261935,1744877460075,-848.77,0.00022465,2]
[358261936,1744877460085,-543.0,0.00022465,2]
[358261937,1744877460095,-500.0,0.00022465,2]
[358261938,1744877460105,-500.0,0.00022465,2]
[358261939,1744877460114,-843.62,0.00022465,2]
[358261940,1744877460124,-500.0,0.00022465,2]
[358261941,1744877460135,-500.0,0.00022465,2]
[358261942,1744877460144,-500.99743915,0.00022465,2]
[358261943,1744877460154,-500.0,0.00022465,2]
[358261944,1744877460164,-500.0,0.00022465,2]
[358261945,1744877460174,-807.94,0.00022465,2]
[358261946,1744877460184,-500.0,0.00022465,2]
[358261947,1744877460194,-783.7,0.00022465,2]
[358261948,1744877460204,-500.0,0.00022465,2]
[358261949,1744877460214,-779.04,0.00022465,2]
[358261950,1744877460224,-500.0,0.00022465,2]
[358261951,1744877460235,-500.0,0.00022465,2]
[358261952,1744877460245,-500.0,0.00022465,2]
[358261953,1744877460255,-500.0,0.00022465,2]
[358261954,1744877460266,-585.1,0.00022465,2]
[358261955,1744877460276,-500.0,0.00022465,2]
[358261956,1744877460286,-857.4,0.00022465,2]
[358261957,1744877460297,-854.14,0.00022465,2]
[358261958,1744877460308,-500.0,0.00022465,2]
[358261959,1744877460318,-500.0,0.00022465,2]
[358261960,1744877460327,-500.0,0.00022465,2]
[358261961,1744877460337,-2192.06,0.00022465,2]
[358261962,1744877460347,-1207.22,0.00022465,2]
[358261963,1744877460356,-500.0,0.00022465,2]
[358261964,1744877460366,-500.0,0.00022465,2]
[358261965,1744877460376,-500.0,0.00022465,2]
[358261966,1744877460387,-669.16,0.00022465,2]
[358261967,1744877460396,-572.07,0.00022465,2]
[358261968,1744877460407,-1284.43,0.00022465,2]
[358261969,1744877460417,-708.15,0.00022465,2]
[358261970,1744877460427,-500.0,0.00022465,2]
[358261971,1744877460437,-500.0,0.00022465,2]
[358261972,1744877460446,-500.0,0.00022465,2]
[358261973,1744877460456,-500.0,0.00022465,2]
[358261974,1744877460466,-500.0,0.00022465,2]
[358261975,1744877460476,-500.0,0.00022465,2]
[358261976,1744877460487,-538.96,0.00022465,2]
[358261977,1744877460498,-500.0,0.00022465,2]
[358261978,1744877460508,-500.0,0.00022465,2]
[358261979,1744877460519,-1105.22,0.00022465,2]
[358261980,1744877460531,-309.37989087,0.00022465,2]
[358261981,1744877460543,-613.89,0.00022465,2]
[358261982,1744877460553,-500.0,0.00022465,2]
[358261983,1744877460563,-500.0,0.00022465,2]
[358261984,1744877460575,-500.0,0.00022465,2]
[358261985,1744877460584,-841.92,0.00022465,2]
[358261986,1744877460594,-680.29,0.00022465,2]
[358261987,1744877460605,-500.0,0.00022465,2]
[358261988,1744877460616,-501.49314934,0.00022465,2]
[358261989,1744877460626,-500.0,0.00022465,2]
[358261990,1744877460636,-1529.78,0.00022465,2]
[358261991,1744877460647,-1000.0,0.00022465,2]
[358261992,1744877460657,-570.98,0.00022465,2]
[358261993,1744877460667,-505.76689639,0.00022465,2]
[358261994,1744877460677,-500.0,0.00022465,2]
[358261995,1744877460687,-500.0,0.00022465,2]
[358261996,1744877460697,-1088.27,0.00022465,2]
[358261997,1744877460707,-500.0,0.00022465,2]
[358261998,1744877460717,-500.0,0.00022465,2]
[358261999,1744877460726,-500.0,0.00022465,2]
[358262000,1744877460736,-724.63,0.00022465,2]
[358262001,1744877460749,-500.0,0.00022465,2]
[358262002,1744877460760,-500.0,0.00022465,2]
[358262003,1744877460770,-660.47,0.00022465,2]
[358262004,1744877460780,-184.07415151,0.00022465,2]
[358262005,1744877460791,-500.0,0.00022465,2]
[358262006,1744877460800,-500.0,0.00022465,2]
[358262007,1744877460811,-795.78,0.00022465,2]
[358262008,1744877460820,-601.29423128,0.00022465,2]
[358262009,1744877460831,-500.0,0.00022465,2]
[358262010,1744877460842,-500.0,0.00022465,2]
[358262011,1744877460852,-500.73479553,0.00022465,2]
[358262012,1744877460862,-770.61,0.00022465,2]
[358262013,1744877460871,-500.0,0.00022465,2]
[358262014,1744877460881,-500.0,0.00022465,2]
[358262015,1744877460891,-504.94,0.00022465,2]
[358262016,1744877460901,-1360.54,0.00022465,2]
[358262017,1744877460910,-500.0,0.00022465,2]
[358262018,1744877460920,-770.59,0.00022465,2]
[358262019,1744877460930,-509.55,0.00022465,2]
[358262020,1744877460940,-500.0,0.00022465,2]
[358262021,1744877460951,-661.53,0.00022465,2]
[358262022,1744877460963,-501.17614573,0.00022465,2]
[358262023,1744877460972,-1444.7,0.00022465,2]
[358262024,1744877460983,-500.0,0.00022465,2]
[358262025,1744877460992,-500.0,0.00022465,2]
[358262026,1744877461002,-500.0,0.00022465,2]
[358262027,1744877461012,-500.0,0.00022465,2]
[358262028,1744877461023,-500.0,0.00022465,2]
[358262029,1744877461033,-500.0,0.00022465,2]
[358262030,1744877461043,-500.0,0.00022465,2]
[358262031,1744877461055,-500.0,0.00022465,2]